fUSD/lending_fUSD_20250820
["ID","MTS","AMOUNT","RATE_DAILY","PERIOD"]
[380326173,1755678656187,-400.0,0.0001767,2]
[380326174,1755678656196,-5800.0,0.00017699,2]
[380326175,1755678656206,-2758.13237773,0.00017699,2]
[380326176,1755678656215,-5800.0,0.00017699,2]
[380326177,1755678656225,-200.0,0.00017699,7]
[380326178,1755678656234,-150.0,0.00017719,2]
[380326179,1755678656244,-150.0,0.00017774,2]
[380326180,1755678656254,-520.72,0.00017776,2]
[380326181,1755678656264,-500.0,0.00017808,2]
[380326182,1755678656273,-150.0,0.00017828,2]
[380326183,1755678656283,-183.33333333,0.00017849,2]
[380326184,1755678656292,-532.0,0.00017849,2]
[380326185,1755678656301,-163.10820716,0.00017873,2]
[380326186,1755678656311,-542.99784149,0.00017873,2]
[380326187,1755678656321,-150.0,0.00017883,2]
[380326188,1755678656330,-927.8964432,0.00017888,2]
[380326189,1755678656341,-797.7743921,0.00017888,2]
[380326190,1755678656350,-2818.94,0.00017899,2]
[380326191,1755678656360,-240560.25,0.000179,2]
[380326192,1755678656369,-710.83899973,0.000179,3]
[380326193,1755678656379,-3899.10335125,0.000179,2]
[380326194,1755678656388,-3899.10335125,0.000179,2]
[380326195,1755678656397,-3899.10335125,0.000179,2]
[380326196,1755678656407,-3899.10335125,0.000179,2]
[380326197,1755678656419,-3899.10335125,0.000179,2]
[380326198,1755678656428,-3899.10335125,0.000179,2]
[380326199,1755678656437,-3899.10335125,0.000179,2]
[380326200,1755678656447,-3899.10335125,0.000179,2]
[380326201,1755678656457,-3899.10335125,0.000179,2]
[380326202,1755678656466,-3899.10335125,0.000179,2]
[380326203,1755678656476,-3899.10335125,0.000179,2]
[380326204,1755678656485,-3899.10335125,0.000179,2]
[380326205,1755678656495,-3899.10335125,0.000179,2]
[380326206,1755678656505,-3899.10335125,0.000179,2]
[380326207,1755678656514,-3899.10335125,0.000179,2]
[380326208,1755678656523,-3899.10335125,0.000179,2]
[380326209,1755678656532,-3899.10335125,0.000179,2]
[380326210,1755678656543,-3899.10335125,0.000179,2]
[380326211,1755678656552,-3899.10335125,0.000179,2]
[380326212,1755678656562,-3899.1,0.000179,2]
[380326213,1755678656572,-2518.43210964,0.000179,2]
[380326214,1755678656581,-2518.43210964,0.000179,2]
[380326215,1755678656590,-2518.43210964,0.000179,2]
[380326216,1755678656600,-2518.43210964,0.000179,2]
[380326217,1755678656609,-2518.43210964,0.000179,2]
[380326218,1755678656618,-2518.43210964,0.000179,2]
[380326219,1755678656628,-2518.43210964,0.000179,2]
[380326220,1755678656637,-2518.43210964,0.000179,2]
[380326221,1755678656647,-2518.43210964,0.000179,2]
[380326222,1755678656656,-2518.43210964,0.000179,2]
[380326223,1755678656665,-2518.43210964,0.000179,2]
[380326224,1755678656675,-2518.43210964,0.000179,2]
[380326225,1755678656684,-2518.43210964,0.000179,2]
[380326226,1755678656693,-2518.43210964,0.000179,2]
[380326227,1755678656702,-2518.43210964,0.000179,2]
[380326228,1755678656712,-2518.43210964,0.000179,2]
[380326229,1755678656723,-2518.43210964,0.000179,2]
[380326230,1755678656733,-2518.43210964,0.000179,2]
[380326231,1755678656742,-2518.43210964,0.000179,2]
[380326232,1755678656752,-2518.43,0.000179,2]
[380326233,1755678656761,-739.00092625,0.000179,2]
[380326234,1755678656770,-739.00092625,0.000179,2]
[380326235,1755678656780,-739.00092625,0.000179,2]
[380326236,1755678656789,-739.00092625,0.000179,2]
[380326237,1755678656798,-739.00092625,0.000179,2]
[380326238,1755678656807,-739.00092625,0.000179,2]
[380326239,1755678656817,-739.00092625,0.000179,2]
[380326240,1755678656826,-739.00092625,0.000179,2]
[380326241,1755678656835,-739.00092625,0.000179,2]
[380326242,1755678656845,-739.00092625,0.000179,2]
[380326243,1755678656855,-739.00092625,0.000179,2]
[380326244,1755678656864,-739.00092625,0.000179,2]
[380326245,1755678656874,-739.00092625,0.000179,2]
[380326246,1755678656882,-739.00092625,0.000179,2]
[380326247,1755678656893,-739.00092625,0.000179,2]
[380326248,1755678656902,-739.00092625,0.000179,2]
[380326249,1755678656911,-739.00092625,0.000179,2]
[380326250,1755678656920,-739.00092625,0.000179,2]
[380326251,1755678656930,-739.00092625,0.000179,2]
[380326252,1755678656939,-739.0,0.000179,2]
[380326253,1755678656948,-176.05255946,0.000179,2]
[380326254,1755678656957,-2000.0,0.00017912,2]
[380326255,1755678656966,-2000.0,0.00017912,2]
[380326256,1755678656975,-2000.0,0.00017912,2]
[380326257,1755678656984,-2000.0,0.00017912,2]
[380326258,1755678656994,-150.0,0.00017937,2]
[380326259,1755678657003,-400.0,0.0001797,2]
[380326260,1755678657012,-400.0,0.0001797,2]
[380326261,1755678657022,-400.89915367,0.0001797,2]
[380326262,1755678657032,-160.03691023,0.00017973,2]
[380326263,1755678657041,-500.0,0.00017973,2]
[380326264,1755678657052,-160.03852459,0.00017973,2]
[380326265,1755678657061,-160.464251,0.00017973,2]
[380326266,1755678657071,-1500.0,0.00017973,2]
[380326267,1755678657080,-776.856582,0.00017988,2]
[380326268,1755678657089,-661.7758161,0.00017988,2]
[380326269,1755678657099,-150.0,0.00017992,2]
[380326270,1755678657109,-160.0,0.00017997,2]
[380326271,1755678657118,-332.60791905,0.00017997,2]
[380326272,1755678657127,-300.0,0.00017999,2]
[380326273,1755678657137,-300.0,0.00017999,2]
[380326274,1755678657147,-51609.75754086,0.00018,2]
[380326574,1755679732981,-190.10644868,0.000221,120]
[380326575,1755679733029,-700.0,0.00024,120]
[380326579,1755679831939,-216.2197,0.000109,2]
[380326580,1755679831949,-277.35679052,0.00011851,2]
[380326581,1755679831960,-160.0,0.00011851,2]
[380326582,1755679831970,-1193.15715908,0.00011858,2]
[380326583,1755679831994,-6.84284092,0.00011858,2]
[380326584,1755679832004,-4152.0,0.00011859,2]
[380326585,1755679832013,-21500.0,0.00011859,2]
[380326586,1755679832023,-250.0,0.0001199,2]
[380326587,1755679832033,-212.04014818,0.00012528,2]
[380326588,1755679832042,-458.46930693,0.00012528,2]
[380326589,1755679832052,-843.97594471,0.00012529,2]
[380326590,1755679832062,-2938.46,0.000128,2]
[380326591,1755679832072,-287.61899177,0.0001322,2]
[380326592,1755679832081,-160.0,0.0001322,2]
[380326593,1755679832091,-275.0,0.00013425,3]
[380326594,1755679832102,-1000.0,0.00013699,2]
[380326595,1755679832112,-298.26089446,0.00014589,2]
[380326596,1755679832122,-160.0,0.00014589,2]
[380326597,1755679832132,-4152.0,0.00014859,2]
[380326598,1755679832142,-6718.23818013,0.00014859,2]
[380326599,1755679832155,-14781.76181987,0.00014859,2]
[380326600,1755679832164,-250.0,0.00015,2]
[380326601,1755679832174,-610.0,0.00015576,2]
[380326602,1755679832183,-2751.0,0.00015628,2]
[380326603,1755679832193,-500.0,0.00015836,2]
[380326604,1755679832204,-220.99,0.00015845,2]
[380326605,1755679832214,-1000.0,0.00015854,2]
[380326606,1755679832223,-1719.34014013,0.0001589,2]
[380326607,1755679832240,-982.14985987,0.0001589,2]
[380326608,1755679832249,-170.0,0.00015891,7]
[380326609,1755679832259,-180.0,0.00015952,2]
[380326610,1755679832268,-309.29654756,0.00015958,2]
[380326611,1755679832278,-160.0,0.00015958,2]
[380326612,1755679832287,-154.05,0.00016058,2]
[380326613,1755679832297,-135.75023542,0.00016112,2]
[380326614,1755679832308,-864.24976458,0.00016112,2]
[380326615,1755679832320,-6121.05527726,0.00016116,2]
[380326619,1755679832344,-2212.30913856,0.00016116,2]
[380326621,1755679832356,-1615.00378799,0.00016116,2]
[380326624,1755679832368,-51.62179619,0.00016116,2]
[380326626,1755679832378,-500.0,0.00016141,2]
[380326628,1755679832387,-162.0,0.00016164,3]
[380326630,1755679832397,-200.0,0.00016413,2]
[380326632,1755679832407,-63.19922769,0.00016438,2]
[380326634,1755679832418,-578.28686975,0.00016438,2]
[380326636,1755679832429,-351.17144605,0.00016438,2]
[380326638,1755679832441,-282.26393641,0.00016438,2]
[380326641,1755679832453,-805.78640123,0.00016438,2]
[380326644,1755679832471,-585.49211887,0.00016438,2]
[380326646,1755679832481,-600.0,0.00016438,2]
[380326648,1755679832491,-600.0,0.00016438,2]
[380326651,1755679832500,-600.0,0.00016438,2]
[380326654,1755679832510,-600.0,0.00016438,2]
[380326657,1755679832519,-600.0,0.00016438,2]
[380326659,1755679832528,-600.0,0.00016438,2]
[380326661,1755679832538,-600.0,0.00016438,2]
[380326663,1755679832547,-600.0,0.00016438,2]
[380326665,1755679832557,-600.0,0.00016438,2]
[380326667,1755679832566,-600.0,0.00016438,2]
[380326669,1755679832575,-600.0,0.00016438,2]
[380326671,1755679832585,-300.0,0.00016582,2]
[380326673,1755679832594,-2666.2,0.00016712,2]
[380326675,1755679832604,-181.31,0.00016712,2]
[380326677,1755679832614,-151.0,0.00016817,2]
[380326679,1755679832623,-300.0,0.00016818,2]
[380326681,1755679832632,-151.0,0.00016823,2]
[380326683,1755679832642,-151.0,0.00016829,2]
[380326685,1755679832651,-151.0,0.00016867,2]
[380326687,1755679832661,-180.99788113,0.00016986,2]
[380326707,1755679837896,-200.0,0.00015852,2]
[380326708,1755679837911,-151.0,0.00016888,2]
[380326709,1755679837942,-211.4845,0.00016986,2]
[380326710,1755679838000,-2273.71761887,0.00016986,2]
[380326711,1755679838015,-300.0,0.00017,2]
[380326712,1755679838031,-1225.72676861,0.00017,2]
[380326802,1755679839895,-396.0,0.00017,2]
[380326803,1755679839915,-421.44257412,0.00017,2]
[380326804,1755679839931,-1923.57641059,0.0001703,2]
[380326805,1755679839950,-723.06764748,0.0001703,2]
[380326806,1755679839969,-271.42282622,0.0001703,2]
[380326807,1755679839988,-315.58264146,0.0001703,2]
[380326808,1755679840015,-2654.35047425,0.0001703,2]
[380326809,1755679840031,-2549.59765975,0.00017255,2]
[380326810,1755679840111,-265.96,0.00017255,2]
[380326811,1755679840131,-3072.44234025,0.00017255,2]
[380326812,1755679840146,-350.25765975,0.0001726,2]
[380326813,1755679840174,-1611.86290545,0.0001726,2]
[380326819,1755679842974,-704.0794348,0.0001726,2]
[380326820,1755679842991,-2000.0,0.000173,2]
[380326821,1755679843006,-320.74051982,0.00017327,2]
[380326822,1755679843022,-160.0,0.00017327,2]
[380326823,1755679843037,-300.0,0.00017331,2]
[380326824,1755679843052,-150.0,0.000174,2]
[380326825,1755679843068,-5888.0,0.00017411,2]
[380326826,1755679843083,-4010.61479258,0.00017413,2]
[380326827,1755679843101,-1877.38520742,0.00017413,2]
[380326828,1755679843116,-3243.77864451,0.00017428,2]
[380326837,1755679862069,-2644.22135549,0.00017428,2]
[380326838,1755679862086,-4849.18692625,0.00017443,2]
[380326839,1755679862106,-1038.81307375,0.00017443,2]
[380326840,1755679862122,-300.6,0.00017507,2]
[380326841,1755679862140,-1795.58692125,0.00017507,2]
[380326842,1755679862163,-9386.7,0.00017507,2]
[380326843,1755679862183,-256.47134128,0.00017507,2]
[380326844,1755679862198,-2887.41537872,0.00017512,2]
[380326845,1755679941777,-3000.58462128,0.00017512,2]
[380326846,1755679941787,-279.19447974,0.00017526,3]
[380326847,1755679941796,-2500.0,0.00017531,3]
[380326848,1755679941805,-5800.0,0.00017699,2]
[380326849,1755679941816,-5888.0,0.000177,2]
[380326850,1755679941830,-5888.0,0.0001772,2]
[380326851,1755679941839,-5888.0,0.00017751,2]
[380326852,1755679941848,-5888.0,0.00017764,2]
[380326853,1755679941857,-11438.75826251,0.00017767,2]
[380326854,1755679941868,-647.72233494,0.000178,2]
[380326855,1755679941878,-221.0,0.00017801,2]
[380326856,1755679941887,-1000.0,0.00017836,2]
[380326857,1755679941896,-500.0,0.0001785,2]
[380326858,1755679941906,-500.0,0.0001785,2]
[380326859,1755679941916,-500.0,0.0001785,2]
[380326860,1755679941925,-500.0,0.00017855,2]
[380326861,1755679941935,-500.0,0.00017856,2]
[380326862,1755679941944,-500.0,0.00017856,2]
[380326863,1755679941955,-200.0,0.00017856,2]
[380326864,1755679941964,-4152.0,0.00017859,2]
[380326865,1755679941973,-1298.74030153,0.00017859,2]
[380326866,1755679942080,-396.84684911,0.00017859,2]
[380326870,1755680094189,200.0,0.00024558,120]
[380326873,1755680336177,200.0,0.00024657,120]
[380326874,1755680365187,201.80256752,0.00024657,120]
[380326877,1755680672101,1600.0,0.00024,120]
[380326881,1755680695429,1500.0,0.000242,120]
[380326884,1755680745106,501.05,0.00024658,120]
[380326899,1755680998154,658.76,0.00024658,120]
[380326910,1755681032144,-300.0,0.00011851,2]
[380326911,1755681032154,-500.0,0.00011851,2]
[380326912,1755681032164,-151.0,0.00011851,2]
[380326913,1755681032173,-300.0,0.00011852,2]
[380326914,1755681032183,-150.0,0.00011852,2]
[380326915,1755681032193,-300.0,0.00011852,2]
[380326916,1755681032203,-300.0,0.00011853,2]
[380326917,1755681032213,-1200.0,0.00011856,2]
[380326918,1755681032227,-150.0,0.00011858,2]
[380326919,1755681032237,-300.0,0.00011858,2]
[380326920,1755681032248,-300.0,0.00011858,2]
[380326921,1755681032257,-2073.915,0.00011859,2]
[380326922,1755681032267,-21500.0,0.00011859,2]
[380326923,1755681032277,-500.0,0.00011906,2]
[380326924,1755681032287,-190.0,0.00012384,3]
[380326925,1755681032299,-151.0,0.00012399,2]
[380326926,1755681032309,-2644.61,0.000128,2]
[380326927,1755681032318,-150.0,0.00012937,2]
[380326928,1755681032328,-315.0,0.00013019,2]
[380326929,1755681032338,-300.0,0.00013037,2]
[380326930,1755681032348,-150.0,0.00013037,2]
[380326931,1755681032357,-250.0,0.00013037,2]
[380326932,1755681032366,-300.0,0.00013037,2]
[380326933,1755681032376,-1680.0,0.00013042,2]
[380326934,1755681032386,-1000.0,0.00013699,2]
[380326935,1755681032395,-908.09516128,0.00014002,2]
[380326936,1755681032404,-160.0,0.000142,2]
[380326937,1755681032414,-277.35679052,0.000142,2]
[380326938,1755681032423,-764.24151879,0.00014368,2]
[380326939,1755681032432,-843.97594471,0.00014688,2]
[380326940,1755681032442,-21500.0,0.00014859,2]
[380326941,1755681032451,-250.0,0.00015,2]
[380326942,1755681032460,-1085.0,0.00015125,2]
[380326943,1755681032469,-200.0,0.00015135,2]
[380326944,1755681032479,-419.62,0.00015152,2]
[380326945,1755681032487,-419.62,0.00015163,2]
[380326946,1755681032496,-419.62,0.00015174,2]
[380326947,1755681032505,-419.62,0.00015186,2]
[380326948,1755681032515,-1000.0,0.00015195,2]
[380326949,1755681032524,-419.62,0.00015197,2]
[380326950,1755681032533,-419.62,0.00015208,2]
[380326951,1755681032542,-419.62,0.00015219,2]
[380326952,1755681032551,-419.62,0.00015231,2]
[380326953,1755681032561,-419.62,0.00015242,2]
[380326954,1755681032570,-419.62,0.00015253,2]
[380326955,1755681032579,-419.62,0.00015265,2]
[380326956,1755681032590,-419.62,0.00015276,2]
[380326957,1755681032599,-11892.87,0.00015286,2]
[380326959,1755681032608,-419.62,0.00015287,2]
[380326961,1755681032617,-419.62,0.00015299,2]
[380326963,1755681032626,-419.62,0.0001531,2]
[380326964,1755681032636,-500.0,0.0001536,2]
[380326966,1755681032645,-1000.0,0.00015393,2]
[380326967,1755681032655,-1824.28,0.0001545,2]
[380326968,1755681032664,-160.0,0.00015569,2]
[380326969,1755681032673,-287.61899177,0.00015569,2]
[380326970,1755681032682,-265.92,0.00015625,2]
[380326971,1755681032692,-166.0,0.00015671,3]
[380326972,1755681032701,-1085.0,0.00015921,2]
[380326973,1755681032710,-201.27159101,0.00015952,2]
[380326974,1755681032720,-170.0,0.00015985,7]
[380326975,1755681032729,-7102.61,0.00016116,2]
[380326976,1755681032738,-151.0,0.00016409,2]
[380326977,1755681032748,-151.0,0.00016415,2]
[380326978,1755681032757,-151.0,0.00016417,2]
[380326979,1755681032766,-151.0,0.00016432,2]
[380326980,1755681032775,-291.25818947,0.00016437,2]
[380326981,1755681032784,-606.40036665,0.00016437,2]
[380326982,1755681032794,-461.70963335,0.00016437,2]
[380326983,1755681032804,-391.32863167,0.00016437,2]
[380326984,1755681032813,-500.0,0.00016437,2]
[380326985,1755681032823,-515.87804958,0.00016437,2]
[380326986,1755681032832,-500.0,0.00016437,2]
[380326987,1755681032842,-500.0,0.00016437,2]
[380326988,1755681032852,-500.0,0.00016437,2]
[380326989,1755681032862,-500.0,0.00016437,2]
[380326990,1755681032871,-150.67319482,0.00016437,2]
[380326991,1755681032881,-1777.5,0.00016438,2]
[380326992,1755681032891,-600.0,0.00016438,2]
[380326993,1755681032900,-600.0,0.00016438,2]
[380326994,1755681032910,-600.0,0.00016438,2]
[380326995,1755681032919,-600.0,0.00016438,2]
[380326996,1755681032928,-600.0,0.00016438,2]
[380326997,1755681032938,-600.0,0.00016438,2]
[380326998,1755681032948,-600.0,0.00016438,2]
[380326999,1755681032957,-600.0,0.00016438,2]
[380327000,1755681032967,-600.0,0.00016438,2]
[380327001,1755681032976,-600.0,0.00016438,2]
[380327002,1755681032986,-600.0,0.00016438,2]
[380327003,1755681032995,-574.25,0.00016448,2]
[380327004,1755681033005,-300.0,0.00016582,2]
[380327005,1755681033015,-458.46930693,0.00016592,2]
[380327006,1755681033025,-212.04014818,0.00016592,2]
[380327007,1755681033035,-1777.5,0.00016712,2]
[380327008,1755681033045,-181.31,0.00016712,2]
[380327009,1755681033054,-1085.0,0.00016759,2]
[380327010,1755681033065,-2751.0,0.00016802,2]
[380327011,1755681033075,-160.0,0.00016938,2]
[380327012,1755681033085,-298.26089446,0.00016938,2]
[380327013,1755681033096,-1777.5,0.00016986,2]
[380327014,1755681033106,-2508.26922595,0.00017,2]
[380327015,1755681033117,-300.0,0.00017,2]
[380327016,1755681033127,-1000.0,0.00017094,2]
[380327017,1755681033138,-1777.5,0.0001726,2]
[380327018,1755681033148,-2000.0,0.000173,2]
[380327019,1755681033158,-5121.0,0.00017307,2]
[380327020,1755681033168,-973.13,0.00017334,2]
[380327021,1755681033177,-1777.5,0.00017534,2]
[380327022,1755681033186,-1085.0,0.00017596,2]
[380327023,1755681033196,-1523.50702,0.0001768,2]
[380327024,1755681033206,-13499.5983714,0.0001771,2]
[380327025,1755681033219,-13499.5983714,0.00017719,2]
[380327026,1755681033228,-4149.27990783,0.00017727,2]
[380327027,1755681033237,-89400.42696973,0.00017731,2]
[380327028,1755681033266,-2133.42930383,0.00017731,2]
[380327029,1755681033281,-1429.19792269,0.00017731,2]
[380327030,1755681033294,-747.50998024,0.00017731,2]
[380327031,1755681033306,-652.85350623,0.00017731,2]
[380327032,1755681033329,-9225.44976111,0.00017731,2]
[380327033,1755681033353,-4295.87546647,0.00017731,2]
[380327034,1755681033366,-1151.64870101,0.00017731,2]
[380327035,1755681033378,-254.49104337,0.00017731,2]
[380327036,1755681033390,-1905.0,0.00017731,2]
[380327166,1755681039721,-458.46930693,0.0001659,2]
[380327168,1755681039731,-2375.53477843,0.00017731,2]
[380327170,1755681039743,-120200.87963061,0.00017731,2]
[380327171,1755681039760,-6455.50321645,0.00017734,2]
[380327174,1755681039771,-233772.29706372,0.00017735,2]
[380327176,1755681039782,-4149.27990783,0.00017737,2]
[380327178,1755681039791,-6455.50321645,0.0001774,2]
[380327180,1755681039805,-5121.0,0.00017741,2]
[380327182,1755681039815,-233772.29706372,0.00017741,2]
[380327184,1755681039824,-6455.50321645,0.00017758,2]
[380327186,1755681039834,-158.71858267,0.00017759,2]
[380327188,1755681039846,-2707.04118699,0.0001776,2]
[380327191,1755681039856,-4149.27990783,0.0001776,2]
[380327193,1755681039867,-6455.50321645,0.00017762,2]
[380327195,1755681039880,-2707.04118699,0.00017762,2]
[380327197,1755681039890,-4149.27990783,0.00017763,2]
[380327199,1755681039901,-72461.58515999,0.00017764,2]
[380327243,1755681040314,-1142.1,0.00017764,2]
[380327246,1755681040326,-1163.7,0.00017764,2]
[380327271,1755681040581,-3813.67469012,0.00017764,2]
[380327273,1755681040593,-15604.51076142,0.00017764,2]
[380327276,1755681040613,-18142.74784534,0.00017764,2]
[380327278,1755681040626,-82721.02475586,0.00017764,2]
[380327280,1755681040638,-2351.4593334,0.00017764,2]
[380327518,1755681043248,-419.62,0.00015321,2]
[380327519,1755681043259,-419.62,0.00015333,2]
[380327520,1755681043268,-419.62,0.00015344,2]
[380327521,1755681043278,-902.54005494,0.00017764,2]
[380327522,1755681043289,-3810.66014428,0.00017764,2]
[380327523,1755681043301,-538.000481,0.00017764,2]
[380327524,1755681043409,-12707.7,0.00017764,2]
[380327529,1755681046185,-419.62,0.00015355,2]
[380327530,1755681046194,-419.62,0.00015367,2]
[380327531,1755681046203,-151.0,0.0001659,2]
[380327532,1755681046213,-6444.46881681,0.00017764,2]
[380327533,1755681046229,-3135.20001,0.00017764,2]
[380327534,1755681046240,-1848.11328,0.00017764,2]
[380327780,1755681141477,1000.0,0.0002463,120]
[380327781,1755681160602,1502.6,0.0002463,120]
[380327782,1755681176044,3175.0,0.00024658,120]
[380327801,1755682203483,-228.94499673,0.00010873,2]
[380327850,1755682233128,-2317.76225408,0.00010873,2]
[380327851,1755682233138,-150.0,0.00010887,2]
[380327852,1755682233148,-300.0,0.00010887,2]
[380327853,1755682233158,-2770.29044441,0.000109,2]
[380327854,1755682233168,-159.15433571,0.000109,2]
[380327855,1755682233178,-150.0,0.00010943,2]
[380327856,1755682233187,-300.0,0.00010943,2]
[380327857,1755682233197,-1200.0,0.00010972,2]
[380327858,1755682233207,-300.0,0.00010972,2]
[380327859,1755682233216,-241.0,0.00010972,2]
[380327860,1755682233226,-500.0,0.00010973,2]
[380327861,1755682233236,-500.0,0.00010973,2]
[380327862,1755682233247,-500.50048187,0.00010973,2]
[380327863,1755682233256,-500.0,0.00010973,2]
[380327864,1755682233267,-500.0,0.00010973,2]
[380327865,1755682233276,-500.46403506,0.00010973,2]
[380327866,1755682233286,-500.0,0.00010973,2]
[380327867,1755682233296,-500.20300624,0.00010973,2]
[380327868,1755682233306,-500.0,0.00010973,2]
[380327869,1755682233315,-500.0,0.00010973,2]
[380327870,1755682233325,-502.72473506,0.00010973,2]
[380327871,1755682233334,-150.0,0.00010998,2]
[380327872,1755682233344,-533.0,0.00010999,2]
[380327873,1755682233354,-632.10461038,0.00010999,2]
[380327874,1755682233364,-318.15329429,0.00010999,2]
[380327875,1755682233374,-500.0,0.00010999,2]
[380327876,1755682233384,-168.55950781,0.00010999,2]
[380327877,1755682233395,-500.0,0.00010999,2]
[380327878,1755682233405,-500.0,0.00010999,2]
[380327879,1755682233415,-627.60909033,0.00010999,2]
[380327880,1755682233424,-607.78934817,0.00010999,2]
[380327881,1755682233433,-500.0,0.00010999,2]
[380327882,1755682233443,-500.0,0.00010999,2]
[380327883,1755682233452,-500.0,0.00010999,2]
[380327884,1755682233461,-500.0,0.00010999,2]
[380327885,1755682233471,-500.0,0.00010999,2]
[380327886,1755682233482,-626.27787514,0.00010999,2]
[380327887,1755682233492,-500.0,0.00010999,2]
[380327888,1755682233501,-500.0,0.00010999,2]
[380327889,1755682233510,-500.0,0.00010999,2]
[380327890,1755682233520,-500.0,0.00010999,2]
[380327891,1755682233529,-377.75094156,0.00010999,2]
[380327892,1755682233538,-371.80133533,0.00010999,2]
[380327893,1755682233548,-500.0,0.00010999,2]
[380327894,1755682233558,-500.0,0.00010999,2]
[380327895,1755682233569,-1775.2868275,0.00011,2]
[380327896,1755682233580,-166161.51012837,0.00011,2]
[380327897,1755682233592,-165174.34179692,0.00011,2]
[380327898,1755682233603,-2255.30356322,0.00011,2]
[380327899,1755682233615,-22866.19761261,0.00011,2]
[380327900,1755682233624,-54239.04316508,0.00011,2]
[380327901,1755682233635,-23049.18068633,0.00011,2]
[380327902,1755682233645,-5.81931367,0.00011,2]
[380327903,1755682233658,-807.95120329,0.00011,2]
[380327904,1755682233670,-38652.29674704,0.00011,2]
[380327905,1755682233681,-14251.8,0.00011,2]
[380327906,1755682233692,-3735.43415599,0.00011,2]
[380327907,1755682233709,-1534.3108601,0.00011,2]
[380327908,1755682233721,-402.91371413,0.00011,2]
[380327909,1755682233753,-100985.25768586,0.00011,2]
[380327915,1755682237353,-290.790492,0.00011,2]
[380327950,1755682238010,-784.500026,0.00011,2]
[380328009,1755682239403,-321.45,0.00011,2]
[380328010,1755682239415,-378.5463095,0.00011,2]
[380328011,1755682239425,-51639.62519899,0.00011,2]
[380328012,1755682239565,-91585.45617236,0.00011,2]
[380328013,1755682239623,-2852.25,0.00011,2]
[380328035,1755682242436,-448.80928647,0.00011,2]
[380328038,1755682242494,-6074.60850713,0.00011,2]
[380328056,1755682242662,-807.52063904,0.00011,2]
[380328074,1755682245530,-810.324985,0.00011,2]
[380328075,1755682245587,-1218.27503021,0.00011,2]
[380328076,1755682245645,-1164.8309795,0.00011,2]
[380328081,1755682651956,245.00054436,0.0002465,120]
[380328084,1755682938402,2572.24,0.00024658,120]
[380328089,1755683395998,-291.41287733,0.00010134,2]
[380328091,1755683397769,170.0,0.00010117,7]
[380328092,1755683399301,-189.33712267,0.00010134,2]
[380328104,1755683431737,-249.7,0.00010187,2]
[380328105,1755683431747,-300.0,0.0001054,2]
[380328106,1755683431757,-300.0,0.00010753,2]
[380328107,1755683431766,-150.0,0.00010893,2]
[380328108,1755683431775,-150.0,0.00010894,2]
[380328109,1755683431784,-150.0,0.00010898,2]
[380328110,1755683431793,-150.0,0.00010899,2]
[380328111,1755683431802,-300.0,0.00010899,2]
[380328112,1755683431811,-1200.0,0.00010899,2]
[380328113,1755683431821,-300.0,0.00010899,2]
[380328114,1755683431830,-158.9853618,0.000109,2]
[380328115,1755683431839,-2442.798,0.000109,2]
[380328116,1755683431848,-434.99219064,0.000109,2]
[380328117,1755683431857,-646.96889476,0.000109,2]
[380328118,1755683431866,-1057.0123738,0.000109,2]
[380328119,1755683431876,-159.1543357,0.000109,2]
[380328120,1755683431885,-574.0388281,0.000109,2]
[380328121,1755683431894,-218.35123035,0.000109,2]
[380328122,1755683431903,-4706.66,0.00010918,2]
[380328123,1755683431912,-500.0,0.00010973,2]